[Event "Live Chess"]
[Site "Chess.com"]
[Date "2024.06.02"]
[Round "-"]
[White "upoe610"]
[Black "Trendle"]
[Result "0-1"]
[WhiteElo "2147"]
[BlackElo "2611"]
[TimeControl "300"]
[EndTime "8:26:46 PDT"]
[Termination "Trendle won by resignation"]

1. c4 {[%clk 0:04:58]} 1... f5 {[%clk 0:04:56.3]} 2. g3 {[%clk 0:04:56.8]} 2...
Nf6 {[%clk 0:04:53.2]} 3. Bg2 {[%clk 0:04:55.4]} 3... g6 {[%clk 0:04:52.8]} 4.
b4 {[%clk 0:04:50.9]} 4... Bg7 {[%clk 0:04:51.9]} 5. Bb2 {[%clk 0:04:50.1]} 5...
O-O {[%clk 0:04:51.6]} 6. Nf3 {[%clk 0:04:48.7]} 6... d6 {[%clk 0:04:48.4]} 7.
O-O {[%clk 0:04:47.4]} 7... e5 {[%clk 0:04:46.9]} 8. d3 {[%clk 0:04:46.2]} 8...
Nc6 {[%clk 0:04:44.4]} 9. b5 {[%clk 0:04:43.6]} 9... Ne7 {[%clk 0:04:44]} 10.
Nbd2 {[%clk 0:04:42.5]} 10... h6 {[%clk 0:04:39.2]} 11. h4 {[%clk 0:04:40.4]}
11... Be6 {[%clk 0:04:36.8]} 12. a4 {[%clk 0:04:38.7]} 12... Rb8 {[%clk
0:04:34.8]} 13. Ne1 {[%clk 0:04:37.7]} 13... Ng4 {[%clk 0:04:31.6]} 14. Nc2
{[%clk 0:04:34.9]} 14... d5 {[%clk 0:04:28.6]} 15. cxd5 {[%clk 0:04:29.5]} 15...
Bxd5 {[%clk 0:04:27.8]} 16. e4 {[%clk 0:04:20]} 16... Be6 {[%clk 0:04:24.1]} 17.
Nc4 {[%clk 0:04:15.1]} 17... f4 {[%clk 0:04:19.8]} 18. f3 {[%clk 0:04:05.9]}
18... fxg3 {[%clk 0:03:56.6]} 19. fxg4 {[%clk 0:04:02.4]} 19... Rxf1+ {[%clk
0:03:43.4]} 20. Qxf1 {[%clk 0:04:00]} 20... Bxg4 {[%clk 0:03:41.8]} 21. Bxe5
{[%clk 0:03:58.6]} 21... Nf5 {[%clk 0:03:23.4]} 22. exf5 {[%clk 0:03:46.4]}
22... Qxh4 {[%clk 0:03:21.7]} 23. Bd5+ {[%clk 0:03:30.5]} 23... Kh8 {[%clk
0:03:14.2]} 24. Qg2 {[%clk 0:03:22.3]} 24... Bxf5 {[%clk 0:03:08]} 25. Bxg3
{[%clk 0:03:08.3]} 25... Qd8 {[%clk 0:02:57.3]} 26. Rd1 {[%clk 0:03:00.4]} 26...
c6 {[%clk 0:02:55.9]} 27. Nd6 {[%clk 0:02:45.4]} 27... Qb6+ {[%clk 0:02:47.3]}
28. Bf2 {[%clk 0:02:42.5]} 28... Qc7 {[%clk 0:02:43.1]} 29. Nxf5 {[%clk
0:02:41.5]} 29... gxf5 {[%clk 0:02:40.2]} 30. bxc6 {[%clk 0:02:35.6]} 30... bxc6
{[%clk 0:02:38.8]} 31. Bf3 {[%clk 0:02:34.7]} 31... Be5 {[%clk 0:02:34.9]} 32.
Nd4 {[%clk 0:02:32.8]} 32... Rg8 {[%clk 0:02:32]} 33. Nxc6 {[%clk 0:02:22.9]}
33... Rxg2+ {[%clk 0:02:24.4]} 34. Kxg2 {[%clk 0:02:20.8]} 34... Bf6 {[%clk
0:02:19.8]} 35. d4 {[%clk 0:02:14.8]} 35... Qf4 {[%clk 0:02:05.7]} 36. Bg3
{[%clk 0:02:06.8]} 36... Qg5 {[%clk 0:02:01.4]} 37. Ne5 {[%clk 0:02:05]} 37...
Bxe5 {[%clk 0:01:56.3]} 38. dxe5 {[%clk 0:02:02.7]} 38... f4 {[%clk 0:01:55.7]}
39. Be4 {[%clk 0:01:48.1]} 39... Qxg3+ {[%clk 0:01:53]} 40. Kf1 {[%clk
0:01:47.3]} 40... f3 {[%clk 0:01:40.3]} 41. Rd2 {[%clk 0:01:46.1]} 41... Qf4
{[%clk 0:01:34.2]} 42. Rd8+ {[%clk 0:01:39.2]} 42... Kg7 {[%clk 0:01:33.4]} 43.
Rd7+ {[%clk 0:01:38]} 43... Kf8 {[%clk 0:01:33]} 44. Bd5 {[%clk 0:01:33.7]}
44... Qc1+ {[%clk 0:01:21.8]} 45. Kf2 {[%clk 0:01:32.1]} 45... Qc2+ {[%clk
0:01:21.5]} 46. Kxf3 {[%clk 0:01:28.6]} 46... Qf5+ {[%clk 0:01:20.3]} 0-1

[Event "Live Chess"]
[Site "Chess.com"]
[Date "2024.06.02"]
[Round "-"]
[White "RichardABates"]
[Black "Bradfield133"]
[Result "1-0"]
[WhiteElo "2374"]
[BlackElo "1820"]
[TimeControl "300"]
[EndTime "8:26:53 PDT"]
[Termination "RichardABates won by resignation"]

1. d4 {[%clk 0:04:57.6]} 1... d6 {[%clk 0:04:58.2]} 2. Nf3 {[%clk 0:04:54.8]}
2... Bg4 {[%clk 0:04:53.9]} 3. c4 {[%clk 0:04:52.8]} 3... Nd7 {[%clk 0:04:50.6]}
4. d5 {[%clk 0:04:51.7]} 4... c6 {[%clk 0:04:42.3]} 5. Nc3 {[%clk 0:04:36.9]}
5... Ngf6 {[%clk 0:04:37.1]} 6. dxc6 {[%clk 0:04:29.8]} 6... bxc6 {[%clk
0:04:34.7]} 7. Nd4 {[%clk 0:04:26.9]} 7... Qc7 {[%clk 0:04:27.5]} 8. h3 {[%clk
0:04:24.7]} 8... Bh5 {[%clk 0:04:24.2]} 9. g4 {[%clk 0:04:23.3]} 9... Bg6 {[%clk
0:04:22]} 10. Bg2 {[%clk 0:04:22]} 10... Nb8 {[%clk 0:04:02.5]} 11. Qa4 {[%clk
0:04:15.5]} 11... Kd7 {[%clk 0:03:50.2]} 12. Nd5 {[%clk 0:04:10.3]} 12... Qb7
{[%clk 0:03:19.5]} 13. Nb4 {[%clk 0:03:40.2]} 13... Be4 {[%clk 0:03:05.6]} 14.
f3 {[%clk 0:03:36]} 14... Bg6 {[%clk 0:02:55.3]} 15. g5 {[%clk 0:03:34.8]} 15...
Nh5 {[%clk 0:02:49.7]} 16. f4 {[%clk 0:03:33.7]} 16... Qb6 {[%clk 0:02:00]} 17.
Nbxc6 {[%clk 0:03:26.7]} 17... Kc8 {[%clk 0:01:24.6]} 18. Nxb8 {[%clk
0:02:45.5]} 18... Qxd4 {[%clk 0:00:52.2]} 19. Qd7+ {[%clk 0:02:42.5]} 1-0

[Event "Live Chess"]
[Site "Chess.com"]
[Date "2024.06.02"]
[Round "-"]
[White "Plimsol"]
[Black "DylanMeyer1"]
[Result "1-0"]
[WhiteElo "2377"]
[BlackElo "1702"]
[TimeControl "300"]
[EndTime "8:26:53 PDT"]
[Termination "Plimsol won by checkmate"]

1. e4 {[%clk 0:04:57.8]} 1... d5 {[%clk 0:04:58.7]} 2. exd5 {[%clk 0:04:56.9]}
2... Qxd5 {[%clk 0:04:58.6]} 3. Nc3 {[%clk 0:04:56]} 3... Qd6 {[%clk 0:04:58.5]}
4. d4 {[%clk 0:04:55.1]} 4... Nf6 {[%clk 0:04:58.1]} 5. Nf3 {[%clk 0:04:54.4]}
5... a6 {[%clk 0:04:57.8]} 6. g3 {[%clk 0:04:27.7]} 6... Bg4 {[%clk 0:04:20.6]}
7. Bg2 {[%clk 0:04:26.4]} 7... g6 {[%clk 0:04:18]} 8. h3 {[%clk 0:04:22.3]} 8...
Be6 {[%clk 0:04:15.6]} 9. Bf4 {[%clk 0:04:14.8]} 9... Qd8 {[%clk 0:04:13.4]} 10.
Ng5 {[%clk 0:03:50.1]} 10... Bc8 {[%clk 0:03:37.1]} 11. O-O {[%clk 0:03:44.6]}
11... Bg7 {[%clk 0:03:36.3]} 12. Qd2 {[%clk 0:03:34.4]} 12... h6 {[%clk
0:03:28.5]} 13. Nf3 {[%clk 0:03:31]} 13... c6 {[%clk 0:02:58.2]} 14. Rfe1 {[%clk
0:03:27.4]} 14... O-O {[%clk 0:02:25]} 15. Bxh6 {[%clk 0:03:24.7]} 15... Qc7
{[%clk 0:01:59.1]} 16. Rad1 {[%clk 0:03:20]} 16... Nbd7 {[%clk 0:01:57.6]} 17.
Rxe7 {[%clk 0:03:16.2]} 17... Re8 {[%clk 0:01:54.6]} 18. Rxe8+ {[%clk
0:03:11.4]} 18... Nxe8 {[%clk 0:01:54.5]} 19. Bxg7 {[%clk 0:03:07.2]} 19... Kxg7
{[%clk 0:01:51]} 20. d5 {[%clk 0:03:07.1]} 20... cxd5 {[%clk 0:01:43.2]} 21.
Nxd5 {[%clk 0:03:05.7]} 21... Qc6 {[%clk 0:01:39.4]} 22. Nd4 {[%clk 0:03:02.9]}
22... Qd6 {[%clk 0:01:25.8]} 23. Qg5 {[%clk 0:02:54.4]} 23... Nef6 {[%clk
0:01:18.8]} 24. Nf5+ {[%clk 0:02:50.9]} 24... Kh7 {[%clk 0:01:16.1]} 25. Qh6+
{[%clk 0:02:49.3]} 25... Kg8 {[%clk 0:01:14]} 26. Qg7# {[%clk 0:02:48.6]} 1-0

[Event "Live Chess"]
[Site "Chess.com"]
[Date "2024.06.02"]
[Round "-"]
[White "missedJariChance"]
[Black "raimundklein"]
[Result "0-1"]
[WhiteElo "1356"]
[BlackElo "1600"]
[TimeControl "300"]
[EndTime "8:26:55 PDT"]
[Termination "raimundklein won by checkmate"]

1. b3 {[%clk 0:04:56.1]} 1... e5 {[%clk 0:04:58.1]} 2. Bb2 {[%clk 0:04:53.9]}
2... d6 {[%clk 0:04:57.1]} 3. e3 {[%clk 0:04:51.6]} 3... Nf6 {[%clk 0:04:55.6]}
4. Nf3 {[%clk 0:04:50]} 4... g6 {[%clk 0:04:54.3]} 5. Be2 {[%clk 0:04:48.6]}
5... Bg7 {[%clk 0:04:53.3]} 6. O-O {[%clk 0:04:45.6]} 6... O-O {[%clk
0:04:51.9]} 7. d4 {[%clk 0:04:43]} 7... e4 {[%clk 0:04:40.6]} 8. Nfd2 {[%clk
0:04:41.1]} 8... d5 {[%clk 0:04:39.6]} 9. c4 {[%clk 0:04:38.9]} 9... c6 {[%clk
0:04:38.6]} 10. Nc3 {[%clk 0:04:36.9]} 10... Be6 {[%clk 0:04:33.5]} 11. f3
{[%clk 0:04:29.7]} 11... Re8 {[%clk 0:04:19.9]} 12. fxe4 {[%clk 0:04:27.4]}
12... dxe4 {[%clk 0:04:17.9]} 13. Ncxe4 {[%clk 0:04:20.6]} 13... Nxe4 {[%clk
0:04:16.7]} 14. Nxe4 {[%clk 0:04:17.1]} 14... Bf5 {[%clk 0:04:11.7]} 15. Ng3
{[%clk 0:04:04.1]} 15... Rxe3 {[%clk 0:04:03.4]} 16. Nxf5 {[%clk 0:04:02.2]}
16... gxf5 {[%clk 0:04:03.3]} 17. Bf3 {[%clk 0:03:09.5]} 17... Qe7 {[%clk
0:03:59]} 18. Qd2 {[%clk 0:02:47.4]} 18... Nd7 {[%clk 0:03:54.6]} 19. Rae1
{[%clk 0:02:41.1]} 19... Re8 {[%clk 0:03:51.4]} 20. Bc3 {[%clk 0:02:26.3]} 20...
c5 {[%clk 0:03:37.9]} 21. Rxe3 {[%clk 0:01:32.8]} 21... Qxe3+ {[%clk 0:03:37.8]}
22. Qxe3 {[%clk 0:01:31.6]} 22... Rxe3 {[%clk 0:03:36.2]} 23. Bd2 {[%clk
0:01:26.7]} 23... Rd3 {[%clk 0:03:35]} 24. Bf4 {[%clk 0:01:08.2]} 24... Bxd4+
{[%clk 0:03:32.7]} 25. Kh1 {[%clk 0:01:06.5]} 25... b6 {[%clk 0:03:26]} 26. Bd5
{[%clk 0:01:00.6]} 26... Ne5 {[%clk 0:03:23.8]} 27. h3 {[%clk 0:00:54.7]} 27...
Kg7 {[%clk 0:03:20.6]} 28. Bxe5+ {[%clk 0:00:47.5]} 28... Bxe5 {[%clk
0:03:18.8]} 29. Rxf5 {[%clk 0:00:45.6]} 29... f6 {[%clk 0:03:12.5]} 30. Rf2
{[%clk 0:00:39.9]} 30... Rd1+ {[%clk 0:03:11.2]} 31. Rf1 {[%clk 0:00:34.4]}
31... Rxf1# {[%clk 0:03:10.4]} 0-1

[Event "Live Chess"]
[Site "Chess.com"]
[Date "2024.06.02"]
[Round "-"]
[White "Inglaterra"]
[Black "bill77678"]
[Result "0-1"]
[WhiteElo "2049"]
[BlackElo "1852"]
[TimeControl "300"]
[EndTime "8:26:55 PDT"]
[Termination "bill77678 won by resignation"]

1. e4 {[%clk 0:04:58.7]} 1... c6 {[%clk 0:04:59]} 2. Nf3 {[%clk 0:04:57.2]} 2...
d5 {[%clk 0:04:58.3]} 3. Nc3 {[%clk 0:04:56.9]} 3... dxe4 {[%clk 0:04:57.1]} 4.
Nxe4 {[%clk 0:04:56.8]} 4... Nf6 {[%clk 0:04:55]} 5. Qe2 {[%clk 0:04:53.7]} 5...
Nxe4 {[%clk 0:04:53.7]} 6. Qxe4 {[%clk 0:04:53.6]} 6... Nd7 {[%clk 0:04:52.9]}
7. Bc4 {[%clk 0:04:52.1]} 7... Nf6 {[%clk 0:04:52]} 8. Qe2 {[%clk 0:04:45.2]}
8... Qc7 {[%clk 0:04:43.5]} 9. h3 {[%clk 0:04:41.8]} 9... e6 {[%clk 0:04:35.8]}
10. O-O {[%clk 0:04:39.6]} 10... Bd6 {[%clk 0:04:31.4]} 11. d4 {[%clk
0:04:22.3]} 11... b5 {[%clk 0:04:28.6]} 12. Bb3 {[%clk 0:04:19.4]} 12... O-O
{[%clk 0:04:27.9]} 13. c3 {[%clk 0:04:13.2]} 13... a5 {[%clk 0:04:25.9]} 14. Bc2
{[%clk 0:04:11.1]} 14... c5 {[%clk 0:04:22.1]} 15. Bg5 {[%clk 0:04:08.6]} 15...
Nd5 {[%clk 0:04:02.7]} 16. Rad1 {[%clk 0:03:58.4]} 16... f6 {[%clk 0:03:53.8]}
17. Bc1 {[%clk 0:03:54.3]} 17... Bb7 {[%clk 0:03:44.8]} 18. Qxe6+ {[%clk
0:03:49.4]} 18... Kh8 {[%clk 0:03:38]} 19. dxc5 {[%clk 0:03:47.5]} 19... Qxc5
{[%clk 0:03:36.6]} 20. Rfe1 {[%clk 0:03:32.1]} 20... Qc6 {[%clk 0:03:31.3]} 21.
Be4 {[%clk 0:03:24.1]} 21... Bh2+ {[%clk 0:03:23.8]} 22. Nxh2 {[%clk 0:03:14.7]}
22... Qxe6 {[%clk 0:03:22.5]} 23. Bxd5 {[%clk 0:03:14.2]} 23... Qb6 {[%clk
0:03:01.3]} 24. Be3 {[%clk 0:03:11.4]} 24... Qc7 {[%clk 0:02:58.2]} 25. Nf3
{[%clk 0:03:03.8]} 25... Bxd5 {[%clk 0:02:56.5]} 26. Rxd5 {[%clk 0:03:02.9]}
26... Rad8 {[%clk 0:02:55.9]} 27. Rxb5 {[%clk 0:02:58.6]} 27... Rfe8 {[%clk
0:02:46.2]} 28. Nd4 {[%clk 0:02:49.6]} 28... h6 {[%clk 0:02:30.6]} 29. a4 {[%clk
0:02:35.5]} 29... Re5 {[%clk 0:02:23.9]} 30. g3 {[%clk 0:02:20.8]} 30... Rxb5
{[%clk 0:02:20.7]} 31. axb5 {[%clk 0:02:18.4]} 31... Kg8 {[%clk 0:02:09.7]} 32.
Ne6 {[%clk 0:02:15]} 32... Qd7 {[%clk 0:02:03.3]} 33. Nxd8 {[%clk 0:02:12]}
33... Qxd8 {[%clk 0:02:03.2]} 34. b6 {[%clk 0:02:10.1]} 34... Kf7 {[%clk
0:01:58.4]} 35. Ra1 {[%clk 0:02:06.2]} 35... Qd5 {[%clk 0:01:53.6]} 36. Ra4
{[%clk 0:02:04.2]} 36... Qd1+ {[%clk 0:01:51]} 0-1

[Event "Live Chess"]
[Site "Chess.com"]
[Date "2024.06.02"]
[Round "-"]
[White "TheSmoulderingMaster"]
[Black "viktor_forever1994"]
[Result "1-0"]
[WhiteElo "1777"]
[BlackElo "1385"]
[TimeControl "300"]
[EndTime "8:26:59 PDT"]
[Termination "TheSmoulderingMaster won by resignation"]

1. e4 {[%clk 0:04:56.6]} 1... e5 {[%clk 0:04:58.9]} 2. Nf3 {[%clk 0:04:54.8]}
2... Nc6 {[%clk 0:04:57.9]} 3. Bb5 {[%clk 0:04:52.9]} 3... Bc5 {[%clk
0:04:56.5]} 4. c3 {[%clk 0:04:51]} 4... Nf6 {[%clk 0:04:55.4]} 5. O-O {[%clk
0:04:49.3]} 5... d6 {[%clk 0:04:54.5]} 6. d4 {[%clk 0:04:47.5]} 6... exd4 {[%clk
0:04:53.1]} 7. cxd4 {[%clk 0:04:46.5]} 7... Bb6 {[%clk 0:04:51.4]} 8. d5 {[%clk
0:04:45.9]} 8... a6 {[%clk 0:04:49.9]} 9. Ba4 {[%clk 0:04:44.5]} 9... Bxf2+
{[%clk 0:04:37]} 10. Rxf2 {[%clk 0:04:41.9]} 10... b5 {[%clk 0:04:35.1]} 11.
dxc6 {[%clk 0:04:40.4]} 11... bxa4 {[%clk 0:04:33.6]} 12. Qxa4 {[%clk
0:04:39.4]} 12... O-O {[%clk 0:04:29.5]} 13. Bg5 {[%clk 0:04:37.4]} 13... h6
{[%clk 0:04:27.8]} 14. Bh4 {[%clk 0:04:35.9]} 14... Re8 {[%clk 0:04:08.2]} 15.
Nc3 {[%clk 0:04:30.7]} 15... Bg4 {[%clk 0:03:35.6]} 16. Nd5 {[%clk 0:04:25.8]}
16... g5 {[%clk 0:03:26.7]} 17. Nxg5 {[%clk 0:04:13.5]} 17... hxg5 {[%clk
0:03:26.6]} 18. Bxg5 {[%clk 0:04:12.2]} 18... Rxe4 {[%clk 0:02:41.5]} 19. Nxf6+
{[%clk 0:04:05.3]} 19... Kg7 {[%clk 0:02:34.2]} 20. Qxe4 {[%clk 0:04:02.7]} 1-0

[Event "Live Chess"]
[Site "Chess.com"]
[Date "2024.06.02"]
[Round "-"]
[White "NAZRIZ1977"]
[Black "Karasyov2"]
[Result "1-0"]
[WhiteElo "2072"]
[BlackElo "1159"]
[TimeControl "300"]
[EndTime "8:27:13 PDT"]
[Termination "NAZRIZ1977 won by resignation"]

1. d4 {[%clk 0:04:55.5]} 1... Nf6 {[%clk 0:04:58.5]} 2. c4 {[%clk 0:04:54.8]}
2... c5 {[%clk 0:04:57.2]} 3. d5 {[%clk 0:04:53.8]} 3... e6 {[%clk 0:04:55.8]}
4. Nc3 {[%clk 0:04:51.7]} 4... d6 {[%clk 0:04:51.7]} 5. e4 {[%clk 0:04:48.9]}
5... exd5 {[%clk 0:04:48.1]} 6. cxd5 {[%clk 0:04:47.9]} 6... g6 {[%clk
0:04:46.1]} 7. Nf3 {[%clk 0:04:47.1]} 7... Bg7 {[%clk 0:04:45]} 8. Be2 {[%clk
0:04:46.6]} 8... O-O {[%clk 0:04:43.6]} 9. O-O {[%clk 0:04:45.8]} 9... Bg4
{[%clk 0:04:36.7]} 10. a4 {[%clk 0:04:44.3]} 10... Bxf3 {[%clk 0:04:33.6]} 11.
Bxf3 {[%clk 0:04:43.3]} 11... Nbd7 {[%clk 0:04:30.1]} 12. Re1 {[%clk 0:04:42.2]}
12... Ne5 {[%clk 0:04:29.1]} 13. Be2 {[%clk 0:04:41.7]} 13... a6 {[%clk
0:04:26.7]} 14. f4 {[%clk 0:04:40.6]} 14... Ned7 {[%clk 0:04:21.2]} 15. Bf3
{[%clk 0:03:54]} 15... Ne8 {[%clk 0:04:15.4]} 16. e5 {[%clk 0:03:48]} 16... dxe5
{[%clk 0:04:12.6]} 17. f5 {[%clk 0:03:47.4]} 17... gxf5 {[%clk 0:04:06.7]} 18.
d6 {[%clk 0:03:38.4]} 18... Nb6 {[%clk 0:03:56.1]} 19. Bxb7 {[%clk 0:03:33.4]}
19... Rb8 {[%clk 0:03:52.7]} 20. Bxa6 {[%clk 0:03:31.6]} 20... Qxd6 {[%clk
0:03:50.4]} 21. Qxd6 {[%clk 0:03:29.3]} 21... Nxd6 {[%clk 0:03:50.1]} 22. Bg5
{[%clk 0:03:28.2]} 22... e4 {[%clk 0:03:45.8]} 23. Be7 {[%clk 0:03:26.7]} 23...
Rfe8 {[%clk 0:03:37.2]} 24. Bxd6 {[%clk 0:03:25.3]} 24... Ra8 {[%clk 0:03:29.4]}
25. Bb5 {[%clk 0:03:21.2]} 25... Re6 {[%clk 0:03:22.4]} 26. Bxc5 {[%clk
0:03:15.1]} 26... Nc8 {[%clk 0:03:10.1]} 27. Rad1 {[%clk 0:03:09.5]} 1-0

[Event "Live Chess"]
[Site "Chess.com"]
[Date "2024.06.02"]
[Round "-"]
[White "HoarseyHorsey"]
[Black "JohanKjeldahl"]
[Result "0-1"]
[WhiteElo "1579"]
[BlackElo "1807"]
[TimeControl "300"]
[EndTime "8:27:35 PDT"]
[Termination "JohanKjeldahl won by resignation"]

1. d4 {[%clk 0:04:58.3]} 1... Nf6 {[%clk 0:04:58.2]} 2. c4 {[%clk 0:04:52]} 2...
e5 {[%clk 0:04:56.8]} 3. dxe5 {[%clk 0:04:50.8]} 3... Ng4 {[%clk 0:04:54.6]} 4.
e3 {[%clk 0:04:44.3]} 4... Nxe5 {[%clk 0:04:51.2]} 5. Nh3 {[%clk 0:04:43.1]}
5... Nbc6 {[%clk 0:04:47.1]} 6. Nc3 {[%clk 0:04:41.1]} 6... Bb4 {[%clk
0:04:45.3]} 7. Bd2 {[%clk 0:04:34.3]} 7... Qe7 {[%clk 0:04:42.6]} 8. Be2 {[%clk
0:04:32.2]} 8... O-O {[%clk 0:04:39.6]} 9. O-O {[%clk 0:04:30.6]} 9... Bxc3
{[%clk 0:04:30.9]} 10. Bxc3 {[%clk 0:04:29.1]} 10... d6 {[%clk 0:04:30.1]} 11.
Nf4 {[%clk 0:04:26.5]} 11... Be6 {[%clk 0:04:18.4]} 12. Nd5 {[%clk 0:04:23.7]}
12... Qd7 {[%clk 0:04:13.9]} 13. f4 {[%clk 0:04:20]} 13... Ng6 {[%clk
0:04:03.6]} 14. Bd3 {[%clk 0:04:09.4]} 14... f5 {[%clk 0:03:59.1]} 15. g3 {[%clk
0:03:42.4]} 15... Bxd5 {[%clk 0:03:57.3]} 16. cxd5 {[%clk 0:03:41.3]} 16... Nce7
{[%clk 0:03:56]} 17. Qb3 {[%clk 0:03:22.6]} 17... b6 {[%clk 0:03:44.4]} 18. Bb5
{[%clk 0:03:18.7]} 18... Qd8 {[%clk 0:03:37.9]} 19. Rac1 {[%clk 0:03:09.3]}
19... a6 {[%clk 0:03:34.8]} 20. Bd3 {[%clk 0:03:05.6]} 20... Ra7 {[%clk
0:03:24.4]} 21. e4 {[%clk 0:03:01.2]} 21... fxe4 {[%clk 0:03:21.2]} 22. Bxe4
{[%clk 0:03:01.1]} 22... Nf5 {[%clk 0:03:16.9]} 23. Qc2 {[%clk 0:02:47.8]} 23...
Ne3 {[%clk 0:03:14.1]} 24. Qd3 {[%clk 0:02:45.6]} 24... Nxf1 {[%clk 0:03:11]}
25. Rxf1 {[%clk 0:02:45.5]} 25... Qe8 {[%clk 0:03:01.9]} 26. f5 {[%clk
0:02:31.6]} 26... Ne5 {[%clk 0:02:58.5]} 27. Bxe5 {[%clk 0:02:30.1]} 27... Qxe5
{[%clk 0:02:56.5]} 28. f6 {[%clk 0:02:25.8]} 28... Rxf6 {[%clk 0:02:55.2]} 29.
Bxh7+ {[%clk 0:02:20.7]} 29... Kh8 {[%clk 0:02:52.8]} 30. Rxf6 {[%clk
0:02:19.1]} 30... Qxf6 {[%clk 0:02:50.7]} 31. Bf5 {[%clk 0:02:14.9]} 31... Ra8
{[%clk 0:02:36]} 32. Be6 {[%clk 0:02:13.3]} 32... Rf8 {[%clk 0:02:25.4]} 33. Kg2
{[%clk 0:02:07.6]} 33... Qf2+ {[%clk 0:02:21.3]} 34. Kh3 {[%clk 0:02:06.9]}
34... Rf6 {[%clk 0:02:16.5]} 35. Kg4 {[%clk 0:01:56.1]} 35... Qxh2 {[%clk
0:02:09.8]} 36. Qe4 {[%clk 0:01:50.7]} 36... Qh6 {[%clk 0:02:00.5]} 37. Bf5
{[%clk 0:01:41.2]} 37... g6 {[%clk 0:01:46.6]} 38. Qe8+ {[%clk 0:01:33.2]} 38...
Kg7 {[%clk 0:01:39.2]} 39. Qd7+ {[%clk 0:01:01.6]} 39... Rf7 {[%clk 0:01:38.1]}
40. Qe6 {[%clk 0:00:55.8]} 40... gxf5+ {[%clk 0:01:34.9]} 41. Kf3 {[%clk
0:00:53.4]} 41... Qxe6 {[%clk 0:01:32]} 0-1

[Event "Live Chess"]
[Site "Chess.com"]
[Date "2024.06.02"]
[Round "-"]
[White "best137"]
[Black "dmitro74"]
[Result "0-1"]
[WhiteElo "1524"]
[BlackElo "1743"]
[TimeControl "300"]
[EndTime "8:27:47 PDT"]
[Termination "dmitro74 won by resignation"]

1. c4 {[%clk 0:04:59]} 1... e5 {[%clk 0:04:58.5]} 2. Nc3 {[%clk 0:04:57.4]} 2...
c6 {[%clk 0:04:57.1]} 3. Nf3 {[%clk 0:04:57]} 3... f6 {[%clk 0:04:53.3]} 4. e4
{[%clk 0:04:53.2]} 4... Ne7 {[%clk 0:04:47.4]} 5. Be2 {[%clk 0:04:41.4]} 5... d5
{[%clk 0:04:45.9]} 6. cxd5 {[%clk 0:04:38.8]} 6... cxd5 {[%clk 0:04:44.7]} 7.
exd5 {[%clk 0:04:36.9]} 7... Nxd5 {[%clk 0:04:44]} 8. Nxd5 {[%clk 0:04:20.8]}
8... Qxd5 {[%clk 0:04:42.1]} 9. O-O {[%clk 0:04:11.9]} 9... b5 {[%clk
0:04:38.3]} 10. d4 {[%clk 0:04:08.8]} 10... e4 {[%clk 0:04:35.6]} 11. Nd2 {[%clk
0:04:01.7]} 11... Bb7 {[%clk 0:04:32.3]} 12. Re1 {[%clk 0:03:56.9]} 12... Bb4
{[%clk 0:04:30.1]} 13. a3 {[%clk 0:03:53.2]} 13... Ba5 {[%clk 0:04:24.1]} 14. b4
{[%clk 0:03:51.8]} 14... Bb6 {[%clk 0:04:21.6]} 15. Nxe4 {[%clk 0:03:46.3]}
15... O-O {[%clk 0:04:12.3]} 16. Bxb5 {[%clk 0:03:32.6]} 16... Qxb5 {[%clk
0:04:04.4]} 17. Nd6 {[%clk 0:03:24.6]} 17... Qd7 {[%clk 0:04:00.9]} 18. Qb3+
{[%clk 0:03:18]} 18... Kh8 {[%clk 0:03:58.5]} 19. Bf4 {[%clk 0:03:08.4]} 19...
Nc6 {[%clk 0:03:54.3]} 20. Rac1 {[%clk 0:02:48.2]} 20... Nxd4 {[%clk 0:03:50.5]}
21. Qg3 {[%clk 0:02:17.8]} 21... Nf5 {[%clk 0:03:44.6]} 22. Nxf5 {[%clk
0:02:10.8]} 22... Qxf5 {[%clk 0:03:43.1]} 23. Re7 {[%clk 0:02:05.4]} 23... g5
{[%clk 0:03:28.4]} 24. Bd6 {[%clk 0:01:25.1]} 24... Bd5 {[%clk 0:03:08.3]} 25.
h4 {[%clk 0:00:56.5]} 25... Rac8 {[%clk 0:02:58.5]} 26. Rf1 {[%clk 0:00:30.6]}
26... Rf7 {[%clk 0:02:50.3]} 27. Rfe1 {[%clk 0:00:18.2]} 27... Rxe7 {[%clk
0:02:34.4]} 28. Rxe7 {[%clk 0:00:18.1]} 28... Bxf2+ {[%clk 0:02:30]} 29. Kh2
{[%clk 0:00:07.6]} 29... Bxg3+ {[%clk 0:02:27.4]} 30. Kxg3 {[%clk 0:00:06.1]}
0-1